[Event "Early-Titled-Tuesday-Blitz-January-16-2024"]
[Site "Chess.com"]
[Date "2024.01.16"]
[Round "1"]
[White "NinoMaisuradze"]
[Black "HalfIsCrayfish"]
[Result "0-1"]
[WhiteElo "2261"]
[BlackElo "2612"]
[TimeControl "180+1"]
[EndTime "8:05:31 PST"]
[Termination "HalfIsCrayfish won by resignation"]

1. d4 {[%clk 0:03:00.9]} 1... Nf6 {[%clk 0:02:59.1]} 2. Nf3 {[%clk 0:03:00.5]}
2... g6 {[%clk 0:02:59]} 3. e3 {[%clk 0:03:00.2]} 3... Bg7 {[%clk 0:02:59.2]} 4.
Bd3 {[%clk 0:03:00.2]} 4... O-O {[%clk 0:02:59.5]} 5. O-O {[%clk 0:03:00.1]}
5... d5 {[%clk 0:02:57.7]} 6. Nbd2 {[%clk 0:02:59]} 6... Nbd7 {[%clk 0:02:57.5]}
7. Ne5 {[%clk 0:02:54.5]} 7... Nxe5 {[%clk 0:02:53.7]} 8. dxe5 {[%clk
0:02:54.5]} 8... Nd7 {[%clk 0:02:54.4]} 9. f4 {[%clk 0:02:51.2]} 9... f6 {[%clk
0:02:53.9]} 10. exf6 {[%clk 0:02:51]} 10... exf6 {[%clk 0:02:54.2]} 11. e4
{[%clk 0:02:46.8]} 11... Nc5 {[%clk 0:02:50.7]} 12. Qf3 {[%clk 0:02:21.2]} 12...
Nxd3 {[%clk 0:02:36.4]} 13. cxd3 {[%clk 0:02:20.5]} 13... Be6 {[%clk 0:02:29.8]}
14. f5 {[%clk 0:02:15.8]} 14... Bf7 {[%clk 0:02:26.7]} 15. fxg6 {[%clk
0:02:14.2]} 15... hxg6 {[%clk 0:02:24.9]} 16. Kh1 {[%clk 0:02:02.5]} 16... Qd7
{[%clk 0:02:19.2]} 17. Nb3 {[%clk 0:01:59.4]} 17... dxe4 {[%clk 0:02:11.7]} 18.
dxe4 {[%clk 0:01:57.8]} 18... Rad8 {[%clk 0:02:11.7]} 19. Bf4 {[%clk 0:01:54.8]}
19... c6 {[%clk 0:02:07.8]} 20. Rfd1 {[%clk 0:01:54.6]} 20... Qe7 {[%clk
0:02:07.3]} 21. Nd4 {[%clk 0:01:50.6]} 21... Rfe8 {[%clk 0:01:40.7]} 22. Nb3
{[%clk 0:01:27.7]} 22... Rxd1+ {[%clk 0:01:39.8]} 23. Rxd1 {[%clk 0:01:26.9]}
23... Qxe4 {[%clk 0:01:40.5]} 24. Qf2 {[%clk 0:00:48.8]} 24... Qe2 {[%clk
0:01:38]} 25. Qxe2 {[%clk 0:00:37]} 25... Rxe2 {[%clk 0:01:38.9]} 26. h3 {[%clk
0:00:36.1]} 26... Bd5 {[%clk 0:01:37.7]} 27. Nc5 {[%clk 0:00:34.3]} 27... Bxg2+
{[%clk 0:01:32.8]} 28. Kg1 {[%clk 0:00:34.7]} 28... Bd5 {[%clk 0:01:32.7]} 29.
Nxb7 {[%clk 0:00:34.1]} 29... Rxb2 {[%clk 0:01:32.2]} 30. Re1 {[%clk 0:00:31.9]}
30... Rxb7 {[%clk 0:01:30.5]} 0-1

[Event "Early-Titled-Tuesday-Blitz-January-16-2024"]
[Site "Chess.com"]
[Date "2024.01.16"]
[Round "1"]
[White "pavet"]
[Black "PapaieDudu"]
[Result "1-0"]
[WhiteElo "2772"]
[BlackElo "2414"]
[TimeControl "180+1"]
[EndTime "8:05:32 PST"]
[Termination "pavet won by resignation"]

1. e4 {[%clk 0:03:00.9]} 1... c5 {[%clk 0:02:56.8]} 2. Nf3 {[%clk 0:03:00.6]}
2... d6 {[%clk 0:02:56.8]} 3. d4 {[%clk 0:03:00.8]} 3... cxd4 {[%clk 0:02:56.7]}
4. Nxd4 {[%clk 0:03:01.7]} 4... Nf6 {[%clk 0:02:57.3]} 5. Nc3 {[%clk 0:03:01.5]}
5... a6 {[%clk 0:02:58]} 6. Bg5 {[%clk 0:03:01.6]} 6... e6 {[%clk 0:02:58.4]} 7.
Qe2 {[%clk 0:03:02]} 7... Nbd7 {[%clk 0:02:59.1]} 8. O-O-O {[%clk 0:03:02.5]}
8... Qc7 {[%clk 0:02:59.8]} 9. f4 {[%clk 0:03:02.9]} 9... b5 {[%clk 0:03:00.3]}
10. a3 {[%clk 0:03:03]} 10... Bb7 {[%clk 0:03:00]} 11. g4 {[%clk 0:03:03.6]}
11... Be7 {[%clk 0:03:00.3]} 12. Bg2 {[%clk 0:03:03]} 12... O-O {[%clk
0:02:59.5]} 13. h4 {[%clk 0:03:03.3]} 13... Rfe8 {[%clk 0:02:53.8]} 14. h5
{[%clk 0:03:02.5]} 14... b4 {[%clk 0:02:38.4]} 15. axb4 {[%clk 0:03:01.7]} 15...
a5 {[%clk 0:02:39.1]} 16. b5 {[%clk 0:02:41.6]} 16... a4 {[%clk 0:02:03.4]} 17.
Nb1 {[%clk 0:02:38.9]} 17... d5 {[%clk 0:02:01.2]} 18. e5 {[%clk 0:02:30.2]}
18... Ne4 {[%clk 0:02:00.3]} 19. Bxe7 {[%clk 0:02:27.9]} 19... Rxe7 {[%clk
0:02:00.1]} 20. Rh3 {[%clk 0:02:19.8]} 20... Ndc5 {[%clk 0:01:55]} 21. h6 {[%clk
0:02:15.5]} 21... g5 {[%clk 0:01:50.4]} 22. Qf1 {[%clk 0:01:43.9]} 22... Rc8
{[%clk 0:01:24.6]} 23. Na3 {[%clk 0:01:42.1]} 23... Qb6 {[%clk 0:00:56.1]} 24.
Kb1 {[%clk 0:01:32.7]} 24... Nd7 {[%clk 0:00:37.9]} 25. Bxe4 {[%clk 0:01:28.5]}
25... dxe4 {[%clk 0:00:38.1]} 26. fxg5 {[%clk 0:01:29.4]} 26... Nxe5 {[%clk
0:00:27.7]} 27. Qf6 {[%clk 0:01:27.2]} 1-0

[Event "Early-Titled-Tuesday-Blitz-January-16-2024"]
[Site "Chess.com"]
[Date "2024.01.16"]
[Round "1"]
[White "PolandHussars"]
[Black "Zainullina_Nataliya"]
[Result "1-0"]
[WhiteElo "2586"]
[BlackElo "2197"]
[TimeControl "180+1"]
[EndTime "8:05:39 PST"]
[Termination "PolandHussars won by resignation"]

1. e4 {[%clk 0:03:00.9]} 1... e5 {[%clk 0:02:56.4]} 2. Nc3 {[%clk 0:03:00.7]}
2... Nf6 {[%clk 0:02:53.7]} 3. g3 {[%clk 0:03:00.2]} 3... Nc6 {[%clk 0:02:51.5]}
4. Bg2 {[%clk 0:03:00]} 4... Bc5 {[%clk 0:02:51.2]} 5. Nge2 {[%clk 0:02:58.6]}
5... O-O {[%clk 0:02:49.7]} 6. O-O {[%clk 0:02:54.8]} 6... d6 {[%clk 0:02:47]}
7. Na4 {[%clk 0:02:53.9]} 7... a6 {[%clk 0:02:41]} 8. Nxc5 {[%clk 0:02:53.9]}
8... dxc5 {[%clk 0:02:41.1]} 9. d3 {[%clk 0:02:54]} 9... Nd4 {[%clk 0:02:38.1]}
10. h3 {[%clk 0:02:50.4]} 10... b6 {[%clk 0:02:34.4]} 11. f4 {[%clk 0:02:40.5]}
11... Nxe2+ {[%clk 0:02:32.3]} 12. Qxe2 {[%clk 0:02:40.1]} 12... exf4 {[%clk
0:02:18.1]} 13. Bxf4 {[%clk 0:02:31.5]} 13... Bb7 {[%clk 0:02:14.8]} 14. Kh2
{[%clk 0:02:21]} 14... Qd4 {[%clk 0:02:10.6]} 15. b3 {[%clk 0:02:10.3]} 15...
Rae8 {[%clk 0:01:50.1]} 16. Bxc7 {[%clk 0:02:01.2]} 16... Nd5 {[%clk 0:01:47.4]}
17. Bf4 {[%clk 0:02:00.2]} 17... Nxf4 {[%clk 0:01:37.9]} 18. gxf4 {[%clk
0:02:01.1]} 18... f5 {[%clk 0:01:33.3]} 19. e5 {[%clk 0:01:53.8]} 19... Bxg2
{[%clk 0:01:32.2]} 20. Qxg2 {[%clk 0:01:54.2]} 20... b5 {[%clk 0:01:26.5]} 21.
a4 {[%clk 0:01:50.7]} 21... c4 {[%clk 0:01:23.9]} 22. axb5 {[%clk 0:01:50.1]}
22... axb5 {[%clk 0:01:23.3]} 23. dxc4 {[%clk 0:01:45.6]} 23... bxc4 {[%clk
0:01:22.5]} 24. Rad1 {[%clk 0:01:39.9]} 24... Qc3 {[%clk 0:01:13.3]} 25. Rd7
{[%clk 0:01:30.7]} 25... g6 {[%clk 0:01:12.2]} 26. Qd5+ {[%clk 0:01:25.3]} 26...
Kh8 {[%clk 0:01:07.4]} 27. Qb7 {[%clk 0:01:11.4]} 27... Qxc2+ {[%clk 0:00:54.4]}
28. Kg1 {[%clk 0:01:09.2]} 1-0

[Event "Early-Titled-Tuesday-Blitz-January-16-2024"]
[Site "Chess.com"]
[Date "2024.01.16"]
[Round "1"]
[White "artin10862"]
[Black "chessS1r"]
[Result "1-0"]
[WhiteElo "2895"]
[BlackElo "2486"]
[TimeControl "180+1"]
[EndTime "8:05:40 PST"]
[Termination "artin10862 won by resignation"]

1. c4 {[%clk 0:03:00.9]} 1... e6 {[%clk 0:02:59.2]} 2. Nc3 {[%clk 0:02:52.4]}
2... d5 {[%clk 0:02:59.2]} 3. d4 {[%clk 0:02:52.4]} 3... Bb4 {[%clk 0:02:58.9]}
4. Nf3 {[%clk 0:02:46.7]} 4... dxc4 {[%clk 0:02:53.5]} 5. e3 {[%clk 0:02:23.8]}
5... b5 {[%clk 0:02:53.5]} 6. Bd2 {[%clk 0:02:18.5]} 6... c6 {[%clk 0:02:50.6]}
7. a4 {[%clk 0:02:18.3]} 7... Bxc3 {[%clk 0:02:49.4]} 8. Bxc3 {[%clk 0:02:18.2]}
8... a5 {[%clk 0:02:48.1]} 9. axb5 {[%clk 0:02:06.6]} 9... cxb5 {[%clk 0:02:49]}
10. b3 {[%clk 0:01:58.9]} 10... Bb7 {[%clk 0:02:48.8]} 11. bxc4 {[%clk
0:01:58.9]} 11... b4 {[%clk 0:02:49.7]} 12. Bb2 {[%clk 0:01:59.1]} 12... Nf6
{[%clk 0:02:49.5]} 13. Bd3 {[%clk 0:01:58.3]} 13... O-O {[%clk 0:02:49.9]} 14.
O-O {[%clk 0:01:58.7]} 14... Nbd7 {[%clk 0:02:50.5]} 15. Qe2 {[%clk 0:01:32.5]}
15... Ne4 {[%clk 0:02:40.7]} 16. c5 {[%clk 0:01:27.2]} 16... Qc7 {[%clk
0:02:30.5]} 17. Nd2 {[%clk 0:01:16.7]} 17... Nxd2 {[%clk 0:02:25.9]} 18. Qxd2
{[%clk 0:01:16.7]} 18... Rfb8 {[%clk 0:02:18.8]} 19. Rfc1 {[%clk 0:01:04.5]}
19... a4 {[%clk 0:02:15.3]} 20. Qxb4 {[%clk 0:00:44]} 20... Bxg2 {[%clk
0:02:14.9]} 21. Qc3 {[%clk 0:00:43.3]} 21... Bc6 {[%clk 0:02:07.7]} 22. d5
{[%clk 0:00:40.7]} 22... e5 {[%clk 0:01:59.8]} 23. dxc6 {[%clk 0:00:30.2]} 23...
Qxc6 {[%clk 0:01:58.5]} 24. Qc2 {[%clk 0:00:22.8]} 24... Ra5 {[%clk 0:01:51.8]}
25. Ba3 {[%clk 0:00:21.5]} 25... g6 {[%clk 0:01:49]} 26. Be4 {[%clk 0:00:19.2]}
26... Qc7 {[%clk 0:01:48.2]} 27. c6 {[%clk 0:00:19.4]} 27... Nf6 {[%clk
0:01:48.6]} 28. Rab1 {[%clk 0:00:18.8]} 28... Rb3 {[%clk 0:01:43.7]} 29. Bd6
{[%clk 0:00:13.3]} 29... Qxd6 {[%clk 0:01:37.1]} 30. c7 {[%clk 0:00:13.2]} 1-0

[Event "Early-Titled-Tuesday-Blitz-January-16-2024"]
[Site "Chess.com"]
[Date "2024.01.16"]
[Round "1"]
[White "talaicito"]
[Black "SmirnovAlexandrA"]
[Result "0-1"]
[WhiteElo "2296"]
[BlackElo "2640"]
[TimeControl "180+1"]
[EndTime "8:05:40 PST"]
[Termination "SmirnovAlexandrA won by resignation"]

1. d4 {[%clk 0:03:00.9]} 1... Nf6 {[%clk 0:02:51.3]} 2. Nc3 {[%clk 0:03:01.4]}
2... g6 {[%clk 0:02:51.7]} 3. e4 {[%clk 0:03:00.3]} 3... d5 {[%clk 0:02:51.6]}
4. e5 {[%clk 0:02:57.6]} 4... Ne4 {[%clk 0:02:51.2]} 5. Nxe4 {[%clk 0:02:57.9]}
5... dxe4 {[%clk 0:02:52.1]} 6. Bc4 {[%clk 0:02:57.5]} 6... Bg7 {[%clk
0:02:49.8]} 7. Ne2 {[%clk 0:02:56.7]} 7... c5 {[%clk 0:02:49.6]} 8. c3 {[%clk
0:02:56.5]} 8... O-O {[%clk 0:02:44.7]} 9. O-O {[%clk 0:02:56]} 9... Nc6 {[%clk
0:02:39.8]} 10. Be3 {[%clk 0:02:55.7]} 10... Bg4 {[%clk 0:02:37.7]} 11. h3
{[%clk 0:02:53.4]} 11... Bxe2 {[%clk 0:02:36.9]} 12. Bxe2 {[%clk 0:02:54.2]}
12... cxd4 {[%clk 0:02:21.1]} 13. cxd4 {[%clk 0:02:53.9]} 13... e6 {[%clk
0:02:22]} 14. Rc1 {[%clk 0:02:42.1]} 14... Rc8 {[%clk 0:02:18.4]} 15. Qb3 {[%clk
0:02:34]} 15... Nxd4 {[%clk 0:02:13.6]} 16. Bxd4 {[%clk 0:02:03.6]} 16... Rxc1
{[%clk 0:02:12.1]} 17. Rxc1 {[%clk 0:02:00.3]} 17... Qxd4 {[%clk 0:02:11.9]} 18.
Qxb7 {[%clk 0:02:00]} 18... Bxe5 {[%clk 0:02:00.8]} 19. Rc4 {[%clk 0:01:37.7]}
19... Qxb2 {[%clk 0:01:53.6]} 20. Qxb2 {[%clk 0:01:36.9]} 20... Bxb2 {[%clk
0:01:54.5]} 21. Rxe4 {[%clk 0:01:37.1]} 21... Rd8 {[%clk 0:01:52.5]} 22. Ra4
{[%clk 0:01:32.2]} 22... Bd4 {[%clk 0:01:52.2]} 23. Ra3 {[%clk 0:01:17.9]} 23...
Bb6 {[%clk 0:01:50.9]} 24. Rd3 {[%clk 0:01:18]} 24... Rc8 {[%clk 0:01:47.8]} 25.
Rd1 {[%clk 0:01:01.7]} 25... Rc2 {[%clk 0:01:46.8]} 26. Kf1 {[%clk 0:00:52.9]}
26... Rxa2 {[%clk 0:01:46.3]} 27. f3 {[%clk 0:00:52.5]} 27... Kg7 {[%clk
0:01:45.8]} 28. Ke1 {[%clk 0:00:52.2]} 28... Kf6 {[%clk 0:01:45.3]} 29. Rb1
{[%clk 0:00:49.7]} 29... h5 {[%clk 0:01:44]} 30. g4 {[%clk 0:00:47.3]} 30... h4
{[%clk 0:01:43.7]} 31. f4 {[%clk 0:00:44]} 31... Ke7 {[%clk 0:01:39.9]} 32. Rc1
{[%clk 0:00:35.6]} 32... Ra3 {[%clk 0:01:38.1]} 33. Bf1 {[%clk 0:00:34.4]} 33...
Re3+ {[%clk 0:01:34.5]} 34. Kd2 {[%clk 0:00:33.1]} 34... Rf3 {[%clk 0:01:33.6]}
35. Rc4 {[%clk 0:00:30.4]} 35... Rxf1 {[%clk 0:01:29.9]} 0-1

[Event "Early-Titled-Tuesday-Blitz-January-16-2024"]
[Site "Chess.com"]
[Date "2024.01.16"]
[Round "1"]
[White "Alimpic"]
[Black "Bauman_Guy"]
[Result "0-1"]
[WhiteElo "2488"]
[BlackElo "2913"]
[TimeControl "180+1"]
[EndTime "8:05:43 PST"]
[Termination "Bauman_Guy won by resignation"]

1. d4 {[%clk 0:03:00.9]} 1... Nf6 {[%clk 0:02:59.6]} 2. c4 {[%clk 0:02:59.2]}
2... e6 {[%clk 0:02:52.4]} 3. Nc3 {[%clk 0:02:58.6]} 3... Bb4 {[%clk 0:02:52]}
4. Bd2 {[%clk 0:02:57.8]} 4... b6 {[%clk 0:02:50]} 5. e3 {[%clk 0:02:56]} 5...
Bb7 {[%clk 0:02:47.9]} 6. Nf3 {[%clk 0:02:56]} 6... O-O {[%clk 0:02:47.9]} 7.
Bd3 {[%clk 0:02:49.7]} 7... d5 {[%clk 0:02:47.9]} 8. cxd5 {[%clk 0:02:49.4]}
8... exd5 {[%clk 0:02:48.8]} 9. Ne5 {[%clk 0:02:34.6]} 9... Bd6 {[%clk
0:02:42.9]} 10. f4 {[%clk 0:02:34.1]} 10... c5 {[%clk 0:02:42.4]} 11. O-O {[%clk
0:02:29.5]} 11... Nc6 {[%clk 0:02:42.2]} 12. Ne2 {[%clk 0:02:20.6]} 12... Ne4
{[%clk 0:02:39.7]} 13. Bxe4 {[%clk 0:02:08.1]} 13... dxe4 {[%clk 0:02:40.6]} 14.
Rc1 {[%clk 0:02:05.6]} 14... Ne7 {[%clk 0:02:37.9]} 15. Bc3 {[%clk 0:01:51.2]}
15... Nd5 {[%clk 0:02:36.4]} 16. Qd2 {[%clk 0:01:45.6]} 16... Rc8 {[%clk
0:02:36.1]} 17. Rfd1 {[%clk 0:01:43.5]} 17... f6 {[%clk 0:02:08.4]} 18. Ng4
{[%clk 0:01:33.6]} 18... Qe7 {[%clk 0:02:01.9]} 19. dxc5 {[%clk 0:01:24.9]}
19... Bxc5 {[%clk 0:02:00.4]} 20. Nd4 {[%clk 0:01:16.9]} 20... Rfd8 {[%clk
0:01:56.4]} 21. Kh1 {[%clk 0:00:59.5]} 21... h5 {[%clk 0:01:37.2]} 22. Nf2
{[%clk 0:00:58]} 22... Nxf4 {[%clk 0:01:35.6]} 23. exf4 {[%clk 0:00:53.6]} 23...
e3 {[%clk 0:01:35.9]} 24. Qe1 {[%clk 0:00:43.1]} 24... exf2 {[%clk 0:01:35.5]}
25. Qxe7 {[%clk 0:00:39.8]} 25... Bxe7 {[%clk 0:01:36.4]} 26. Nf3 {[%clk
0:00:20.2]} 26... Ba6 {[%clk 0:01:30]} 27. Nd2 {[%clk 0:00:17.6]} 27... Rxd2
{[%clk 0:01:26.3]} 28. Bxd2 {[%clk 0:00:16.9]} 28... Rxc1 {[%clk 0:01:27.2]} 29.
Rxc1 {[%clk 0:00:17.8]} 29... f1=Q+ {[%clk 0:01:27.6]} 30. Rxf1 {[%clk 0:00:18]}
30... Bxf1 {[%clk 0:01:28.5]} 31. Kg1 {[%clk 0:00:17.4]} 31... Bd3 {[%clk
0:01:28]} 0-1

[Event "Early-Titled-Tuesday-Blitz-January-16-2024"]
[Site "Chess.com"]
[Date "2024.01.16"]
[Round "1"]
[White "Mops_2004"]
[Black "publicaccountcze"]
[Result "1-0"]
[WhiteElo "2668"]
[BlackElo "2336"]
[TimeControl "180+1"]
[EndTime "8:05:55 PST"]
[Termination "Mops_2004 won on time"]

1. Nf3 {[%clk 0:03:00.9]} 1... Nf6 {[%clk 0:02:59.2]} 2. c4 {[%clk 0:02:59.5]}
2... c5 {[%clk 0:02:59]} 3. Nc3 {[%clk 0:02:55.3]} 3... Nc6 {[%clk 0:02:59.2]}
4. d4 {[%clk 0:02:54.6]} 4... cxd4 {[%clk 0:02:58.6]} 5. Nxd4 {[%clk 0:02:54.7]}
5... g6 {[%clk 0:02:57]} 6. e4 {[%clk 0:02:51.6]} 6... d6 {[%clk 0:02:55.4]} 7.
Be2 {[%clk 0:02:47.7]} 7... Bg7 {[%clk 0:02:51]} 8. Be3 {[%clk 0:02:47.2]} 8...
O-O {[%clk 0:02:50.8]} 9. O-O {[%clk 0:02:47.1]} 9... a6 {[%clk 0:02:33.8]} 10.
h3 {[%clk 0:02:45]} 10... Qc7 {[%clk 0:02:33]} 11. Rc1 {[%clk 0:02:39.7]} 11...
Nd7 {[%clk 0:02:25.2]} 12. Nd5 {[%clk 0:02:38.7]} 12... Qd8 {[%clk 0:02:19.5]}
13. Qd2 {[%clk 0:02:36.7]} 13... Nc5 {[%clk 0:02:14.1]} 14. f3 {[%clk 0:02:31]}
14... Be6 {[%clk 0:02:02.5]} 15. b4 {[%clk 0:02:03.4]} 15... Nd7 {[%clk
0:01:42.8]} 16. Nxe6 {[%clk 0:01:57]} 16... fxe6 {[%clk 0:01:42.6]} 17. Nf4
{[%clk 0:01:57.6]} 17... Rf6 {[%clk 0:01:03.9]} 18. c5 {[%clk 0:01:34.7]} 18...
e5 {[%clk 0:00:53.9]} 19. Bc4+ {[%clk 0:01:32.5]} 19... Kh8 {[%clk 0:00:51.7]}
20. Ne6 {[%clk 0:01:30.8]} 20... Qc8 {[%clk 0:00:35.8]} 21. cxd6 {[%clk
0:01:30.5]} 21... exd6 {[%clk 0:00:32]} 22. Nxg7 {[%clk 0:01:15.9]} 22... Kxg7
{[%clk 0:00:31.4]} 23. Bg5 {[%clk 0:01:16.4]} 23... Qf8 {[%clk 0:00:05.8]} 24.
Bh6+ {[%clk 0:01:15.2]} 1-0

[Event "Early-Titled-Tuesday-Blitz-January-16-2024"]
[Site "Chess.com"]
[Date "2024.01.16"]
[Round "1"]
[White "mishanick"]
[Black "santosalberto1987"]
[Result "1-0"]
[WhiteElo "3082"]
[BlackElo "2538"]
[TimeControl "180+1"]
[EndTime "8:05:56 PST"]
[Termination "mishanick won by resignation"]

1. d4 {[%clk 0:03:00.9]} 1... d5 {[%clk 0:03:00.2]} 2. c4 {[%clk 0:02:59.4]}
2... c6 {[%clk 0:03:00.5]} 3. Nf3 {[%clk 0:02:59.3]} 3... Nf6 {[%clk 0:03:00.9]}
4. Nc3 {[%clk 0:03:00.2]} 4... dxc4 {[%clk 0:03:01.1]} 5. a4 {[%clk 0:03:00.3]}
5... Bf5 {[%clk 0:03:01.3]} 6. Ne5 {[%clk 0:03:00.3]} 6... e6 {[%clk 0:03:01.9]}
7. f3 {[%clk 0:02:59.2]} 7... Bb4 {[%clk 0:03:02.4]} 8. Nxc4 {[%clk 0:02:58.7]}
8... O-O {[%clk 0:03:01.8]} 9. Kf2 {[%clk 0:02:57.4]} 9... c5 {[%clk 0:02:58.9]}
10. Na2 {[%clk 0:02:56.8]} 10... Nc6 {[%clk 0:02:57.8]} 11. Nxb4 {[%clk
0:02:55.8]} 11... Nxb4 {[%clk 0:02:57.1]} 12. e4 {[%clk 0:02:52.9]} 12... Bg6
{[%clk 0:02:53.6]} 13. Be3 {[%clk 0:02:42.9]} 13... cxd4 {[%clk 0:02:53.4]} 14.
Bxd4 {[%clk 0:02:42.6]} 14... Nc6 {[%clk 0:02:40]} 15. Bc5 {[%clk 0:02:41]}
15... Qxd1 {[%clk 0:02:38.7]} 16. Rxd1 {[%clk 0:02:40.7]} 16... Rfd8 {[%clk
0:02:39.2]} 17. Nd6 {[%clk 0:02:32.9]} 17... Ne8 {[%clk 0:02:23.6]} 18. Bb5
{[%clk 0:02:30.8]} 18... Nxd6 {[%clk 0:02:23.1]} 19. Bxd6 {[%clk 0:02:31.7]}
19... f6 {[%clk 0:02:13.8]} 20. Bc7 {[%clk 0:02:29]} 20... Rxd1 {[%clk 0:02:10]}
21. Rxd1 {[%clk 0:02:29.9]} 21... Be8 {[%clk 0:02:07]} 22. Bf4 {[%clk
0:02:23.4]} 22... Kf7 {[%clk 0:02:02.8]} 23. Be3 {[%clk 0:02:23]} 23... a6
{[%clk 0:01:55]} 24. Be2 {[%clk 0:02:22.8]} 24... Rd8 {[%clk 0:01:54.6]} 25. Rc1
{[%clk 0:02:20.2]} 25... Nb4 {[%clk 0:01:46.9]} 26. Rc7+ {[%clk 0:02:02.8]}
26... Rd7 {[%clk 0:01:46.4]} 27. Rc3 {[%clk 0:02:00.6]} 27... Rd8 {[%clk
0:01:15]} 28. b3 {[%clk 0:01:59.2]} 28... Na2 {[%clk 0:01:02.6]} 29. Rc7+ {[%clk
0:01:54.1]} 29... Rd7 {[%clk 0:01:02.7]} 30. Rc8 {[%clk 0:01:54.6]} 30... Nb4
{[%clk 0:01:02.7]} 31. Rc3 {[%clk 0:01:49.9]} 31... Na2 {[%clk 0:01:02.1]} 32.
Rc4 {[%clk 0:01:49.6]} 32... Rd6 {[%clk 0:00:53.3]} 33. Rc7+ {[%clk 0:01:40.5]}
33... Rd7 {[%clk 0:00:52.9]} 34. Rxd7+ {[%clk 0:01:41.2]} 34... Bxd7 {[%clk
0:00:53]} 35. Bd2 {[%clk 0:01:41.9]} 35... Bc8 {[%clk 0:00:33]} 36. Bd3 {[%clk
0:01:37.3]} 36... a5 {[%clk 0:00:26.7]} 37. Bxa5 {[%clk 0:01:36.1]} 37... Nc1
{[%clk 0:00:26.6]} 38. Bc2 {[%clk 0:01:33.5]} 38... e5 {[%clk 0:00:22.3]} 39.
Bd2 {[%clk 0:01:33.6]} 39... Na2 {[%clk 0:00:21.3]} 40. Bb1 {[%clk 0:01:32.7]}
1-0

[Event "Early-Titled-Tuesday-Blitz-January-16-2024"]
[Site "Chess.com"]
[Date "2024.01.16"]
[Round "1"]
[White "RojonR"]
[Black "Chempiblinka"]
[Result "1-0"]
[WhiteElo "2611"]
[BlackElo "2258"]
[TimeControl "180+1"]
[EndTime "8:05:57 PST"]
[Termination "RojonR won by resignation"]

1. e4 {[%clk 0:03:00.9]} 1... c5 {[%clk 0:02:57.2]} 2. Nf3 {[%clk 0:03:00.8]}
2... Nc6 {[%clk 0:02:57.7]} 3. Bb5 {[%clk 0:03:00.1]} 3... g6 {[%clk 0:02:57]}
4. Bxc6 {[%clk 0:03:00.1]} 4... dxc6 {[%clk 0:02:56.6]} 5. d3 {[%clk 0:03:00]}
5... Bg7 {[%clk 0:02:57.1]} 6. h3 {[%clk 0:02:59.8]} 6... e5 {[%clk 0:02:57.5]}
7. Nc3 {[%clk 0:02:59.5]} 7... Ne7 {[%clk 0:02:56.6]} 8. Be3 {[%clk 0:03:00.2]}
8... b6 {[%clk 0:02:55.1]} 9. Qd2 {[%clk 0:03:00.7]} 9... O-O {[%clk 0:02:53.8]}
10. Bh6 {[%clk 0:03:00]} 10... Qc7 {[%clk 0:02:33.9]} 11. Bxg7 {[%clk
0:02:57.2]} 11... Kxg7 {[%clk 0:02:33.1]} 12. Ne2 {[%clk 0:02:55.8]} 12... Be6
{[%clk 0:02:06.6]} 13. Qc3 {[%clk 0:02:54]} 13... f6 {[%clk 0:02:05.5]} 14. O-O
{[%clk 0:02:51.7]} 14... Rad8 {[%clk 0:01:53]} 15. Nd2 {[%clk 0:02:49.3]} 15...
Rd7 {[%clk 0:01:42.4]} 16. f4 {[%clk 0:02:46.9]} 16... Nc8 {[%clk 0:01:28.5]}
17. fxe5 {[%clk 0:02:25.6]} 17... Qxe5 {[%clk 0:01:26]} 18. Qxe5 {[%clk
0:02:25.8]} 18... fxe5 {[%clk 0:01:26.9]} 19. Rxf8 {[%clk 0:02:25.8]} 19... Kxf8
{[%clk 0:01:26.5]} 20. Nf3 {[%clk 0:02:26.7]} 20... Rc7 {[%clk 0:01:00.4]} 21.
Nxe5 {[%clk 0:02:19.8]} 21... b5 {[%clk 0:00:56.5]} 22. a4 {[%clk 0:02:15.9]}
22... Nd6 {[%clk 0:00:51.8]} 23. axb5 {[%clk 0:02:08.5]} 23... cxb5 {[%clk
0:00:52.7]} 24. Ra6 {[%clk 0:02:08.7]} 24... Ke7 {[%clk 0:00:45]} 25. Nf4 {[%clk
0:01:45.8]} 25... Bg8 {[%clk 0:00:12.3]} 26. Nc6+ {[%clk 0:01:40.4]} 26... Kd7
{[%clk 0:00:12.5]} 27. Nxa7 {[%clk 0:01:40.9]} 27... c4 {[%clk 0:00:10.1]} 28.
Rxd6+ {[%clk 0:01:40]} 28... Kxd6 {[%clk 0:00:08.6]} 29. Nxb5+ {[%clk
0:01:40.7]} 29... Kc6 {[%clk 0:00:08.8]} 30. Nxc7 {[%clk 0:01:40.4]} 30... Kxc7
{[%clk 0:00:09.7]} 31. d4 {[%clk 0:01:35.1]} 31... Kd6 {[%clk 0:00:08]} 1-0